bitfinex/quotes_BTCUSD_20250730
["timestamp","ask_amount","ask_price","bid_price","bid_amount"]
[1753897212370,1.61409768,118030.0,118020.0,0.21245]
[1753897213007,1.17092623,118030.0,118020.0,0.21245]
[1753897213210,1.61409768,118030.0,118020.0,0.21245]
[1753897213411,1.61409768,118030.0,118020.0,0.21345]
[1753897215642,1.61409768,118030.0,118020.0,0.236825]
[1753897217111,1.17092623,118030.0,118020.0,0.236825]
[1753897217312,1.61409768,118030.0,118020.0,0.236825]
[1753897217559,1.61409768,118030.0,118020.0,0.21548]
[1753897223840,0.83092623,118030.0,118020.0,0.2999573]
[1753897224517,0.83092623,118030.0,118020.0,0.4694201]
[1753897224901,0.83092623,118030.0,118020.0,0.2999573]
[1753897228177,1.27409768,118030.0,118020.0,0.2999573]
[1753897229009,0.83092623,118030.0,118020.0,0.2999573]
[1753897234492,0.83092623,118030.0,118020.0,0.4694201]
[1753897234722,0.83092623,118030.0,118020.0,0.91259155]
[1753897235136,0.83092623,118030.0,118020.0,0.4694201]
[1753897235998,0.83092623,118030.0,118020.0,0.4863663]
[1753897236216,0.82147659,118030.0,118020.0,0.49483929]
[1753897236636,0.82147659,118030.0,118020.0,0.47789324]
[1753897236855,0.82147659,118030.0,118020.0,0.4863663]
[1753897237316,0.82147659,118030.0,118020.0,0.93801067]
[1753897237485,0.82147659,118030.0,118020.0,0.93801074]
[1753897237699,0.82147659,118030.0,118020.0,0.4694201]
[1753897238302,0.82147659,118030.0,118020.0,0.48636623]
[1753897238502,0.82147659,118030.0,118020.0,0.50331171]
[1753897238899,0.82147659,118030.0,118020.0,0.94648323]
[1753897239784,0.82147659,118030.0,118020.0,0.95495586]
[1753897240636,0.82147659,118030.0,118020.0,0.94648331]
[1753897241164,0.82147659,118030.0,118020.0,0.95495601]
[1753897241623,0.82147659,118030.0,118020.0,0.9549555]
[1753897243488,0.58283013,118030.0,118020.0,0.9549555]
[1753897245056,0.58283013,118030.0,118020.0,0.9804205]
[1753897246885,0.58283013,118030.0,118020.0,0.55469807]
[1753897247085,0.58283013,118030.0,118020.0,1.02286952]
[1753897247929,0.58283013,118030.0,118020.0,0.57969807]
[1753897248181,0.58283013,118030.0,118020.0,1.02286952]
[1753897248527,0.58283013,118030.0,118020.0,1.02186952]
[1753897249000,0.58283013,118030.0,118020.0,1.02486952]
[1753897249901,0.58283013,118030.0,118020.0,1.02886952]
[1753897250106,0.58283013,118030.0,118020.0,0.87502952]
[1753897250320,0.58283013,118030.0,118020.0,1.02874952]
[1753897250595,1.02600158,118030.0,118020.0,0.2025823]
[1753897250821,1.02600158,118030.0,118020.0,0.2912623]
[1753897251028,1.02600158,118030.0,118020.0,0.2657973]
[1753897251928,0.58283013,118030.0,118020.0,0.2657973]
[1753897252360,0.58283013,118030.0,118020.0,0.2991573]
[1753897254709,0.58283013,118030.0,118020.0,0.2657973]
[1753897255119,0.58283013,118030.0,118020.0,0.29584521]
[1753897255379,0.58283013,118030.0,118020.0,0.2657973]
[1753897255773,0.58283013,118030.0,118020.0,0.2982473]
[1753897256216,0.58283013,118030.0,118020.0,0.3014873]
[1753897260786,1.02600158,118030.0,118020.0,0.1695273]
[1753897261028,1.03865158,118030.0,118020.0,0.0914773]
[1753897261255,1.14043806,118030.0,118020.0,0.2201973]
[1753897261495,1.14043806,118030.0,118020.0,0.2171973]
[1753897261496,1.08645158,118030.0,118020.0,0.2171973]
[1753897261706,1.08645158,118030.0,118020.0,0.2131973]
[1753897261923,1.06215158,118030.0,118020.0,0.2151973]
[1753897262161,1.03865158,118030.0,118020.0,0.2151973]
[1753897262646,1.42645158,118030.0,118020.0,0.2131973]
[1753897263069,1.42645158,118030.0,118020.0,0.2141973]
[1753897263300,1.42645158,118030.0,118020.0,0.23561703]
[1753897263510,1.42645158,118030.0,118020.0,0.23761703]
[1753897266977,1.40215158,118030.0,118020.0,0.23761703]
[1753897267860,1.36600158,118030.0,118020.0,0.27006703]
[1753897268111,1.36600158,118030.0,118020.0,0.29186703]
[1753897268320,1.36600158,118030.0,118020.0,0.29510703]
[1753897269392,1.36600158,118030.0,118020.0,0.27330703]
[1753897269600,1.36600158,118030.0,118020.0,0.27006703]
[1753897269806,1.36600158,118030.0,118020.0,0.23761703]
[1753897270469,0.92283013,118030.0,118020.0,0.32099703]
[1753897270683,0.58283013,118030.0,118020.0,0.76416848]
[1753897270885,0.58283013,118030.0,118020.0,0.32099703]
[1753897273567,0.58283013,118030.0,118020.0,0.49045983]
[1753897274053,0.58283013,118030.0,118020.0,0.32099703]
[1753897275757,1.02600158,118030.0,118020.0,0.19227703]
[1753897275944,1.02600158,118030.0,118020.0,0.31900703]
[1753897276138,1.02600158,118030.0,118020.0,0.23761703]
[1753897276340,1.03865158,118030.0,118020.0,0.10889703]
[1753897276549,1.03865158,118030.0,118020.0,0.23761703]
[1753897276753,0.83865158,118030.0,118020.0,0.23761703]
[1753897277085,0.82600158,118030.0,118020.0,0.23761703]
[1753897277834,0.62600158,118030.0,118020.0,0.23761703]
[1753897278238,0.62600158,118030.0,118020.0,0.25991703]
[1753897278476,0.42600158,118030.0,118020.0,0.29236703]
[1753897278706,0.42600158,118030.0,118020.0,0.25991703]
[1753897279144,0.42600158,118030.0,118020.0,0.29236703]
[1753897279804,0.42600158,118030.0,118020.0,0.29560703]
[1753897280821,0.22600158,118030.0,118020.0,0.29560703]
[1753897281837,0.01265,118040.0,118020.0,0.29560703]
[1753897282046,0.53425,118040.0,118030.0,0.0844773]
[1753897282940,0.53425,118040.0,118030.0,0.09310548]
[1753897283147,0.97747001,118040.0,118030.0,0.09310548]
[1753897283359,0.47747001,118040.0,118030.0,0.09310548]
[1753897284629,0.45587001,118040.0,118030.0,0.09310548]
[1753897286255,0.45587001,118040.0,118030.0,0.0844773]
[1753897287748,0.84157001,118040.0,118030.0,0.12872]
[1753897287972,1.30168386,118040.0,118030.0,0.12872]
[1753897288409,0.85851241,118040.0,118030.0,0.12872]
[1753897288622,0.85004114,118040.0,118030.0,0.12872]
[1753897289099,0.85851241,118040.0,118030.0,0.12872]
[1753897289709,0.85004114,118040.0,118030.0,0.12872]
[1753897290256,0.85851241,118040.0,118030.0,0.12872]
[1753897290673,0.51851241,118040.0,118030.0,0.12872]
[1753897290880,0.85851241,118040.0,118030.0,0.12872]
[1753897291284,0.85851234,118040.0,118030.0,0.12872]
[1753897291683,0.85004114,118040.0,118030.0,0.12872]
[1753897292073,0.84157001,118040.0,118030.0,0.12872]
[1753897292521,0.85004121,118040.0,118030.0,0.12872]
[1753897293552,0.84157001,118040.0,118030.0,0.12872]
[1753897293763,0.85004114,118040.0,118030.0,0.12872]
[1753897293970,0.85004106,118040.0,118030.0,0.12872]
[1753897295765,0.85851219,118040.0,118030.0,0.12872]
[1753897296476,0.85004106,118040.0,118030.0,0.12872]
[1753897297360,0.85851219,118040.0,118030.0,0.12872]
[1753897297574,0.86698346,118040.0,118030.0,0.12872]
[1753897297968,0.87545487,118040.0,118030.0,0.12872]
[1753897298447,0.86698346,118040.0,118030.0,0.12872]
[1753897298651,0.8754548,118040.0,118030.0,0.12872]
[1753897299112,6.30764583,118040.0,118020.0,0.03896]
[1753897299336,0.78317145,118030.0,118020.0,0.16455]
[1753897299548,0.79164322,118030.0,118020.0,0.16455]
[1753897299773,0.78317145,118030.0,118020.0,0.16455]
[1753897299956,0.79164322,118030.0,118020.0,0.16455]
[1753897300159,0.83097145,118030.0,118020.0,0.12872]
[1753897300391,0.85767322,118030.0,118020.0,0.12872]
[1753897300599,0.34,118020.0,118010.0,0.03896]
[1753897300835,0.78317145,118020.0,118010.0,0.2521573]
[1753897301065,0.78317145,118020.0,118010.0,0.16768]
[1753897302292,0.78317145,118020.0,118010.0,0.17268]
[1753897302502,0.78317145,118020.0,118010.0,0.16655]
[1753897302919,0.78317145,118020.0,118010.0,0.16968]
[1753897303332,0.34,118020.0,118010.0,0.16968]
[1753897303535,0.78317145,118020.0,118010.0,0.16968]
[1753897303905,0.78317145,118020.0,118010.0,0.1698]
[1753897304563,0.34,118020.0,118010.0,0.1923]
[1753897304779,0.12876856,118040.0,118020.0,0.0467]
[1753897304992,0.00600887,118040.0,118030.0,0.15334]
[1753897305199,4.856e-05,118040.0,118030.0,0.3009773]
[1753897306175,4.856e-05,118040.0,118030.0,0.3029773]
[1753897308262,4.856e-05,118040.0,118030.0,0.3039773]
[1753897311124,4.856e-05,118040.0,118030.0,0.74714875]
[1753897311802,4.856e-05,118040.0,118030.0,0.3039773]
[1753897312185,0.34004856,118040.0,118030.0,0.3039773]
[1753897313927,0.34004856,118040.0,118030.0,0.2797773]
[1753897314133,0.81063494,118040.0,118030.0,0.3046773]
[1753897314367,0.81063494,118040.0,118030.0,0.2797773]
[1753897314575,0.78322001,118040.0,118030.0,0.2797773]
[1753897315106,0.78322001,118040.0,118030.0,0.2787773]
[1753897315562,0.78322001,118040.0,118030.0,0.2767773]
[1753897316185,0.34004856,118040.0,118030.0,0.2767773]
[1753897316395,0.78322001,118040.0,118030.0,0.2767773]
[1753897318713,0.34004856,118040.0,118030.0,0.3004773]
[1753897318916,0.78322001,118040.0,118030.0,0.3004773]
[1753897325837,0.34004856,118040.0,118030.0,0.3004773]
[1753897326207,0.83602001,118040.0,118030.0,0.0844773]
[1753897326405,0.83602001,118040.0,118030.0,0.2131973]
[1753897326406,0.82759001,118040.0,118030.0,0.2131973]
[1753897326635,0.39288961,118040.0,118030.0,0.2131973]
[1753897326803,0.34004856,118040.0,118030.0,0.2131973]
[1753897327027,0.78322001,118040.0,118030.0,0.2796373]
[1753897329440,0.78322001,118040.0,118030.0,0.2817773]
[1753897330063,0.34004856,118040.0,118030.0,0.2817773]
[1753897330488,0.34004856,118040.0,118030.0,0.3082773]
[1753897330710,0.78322001,118040.0,118030.0,0.3082773]
[1753897330915,0.34004856,118040.0,118030.0,0.3082773]
[1753897338798,0.34004856,118040.0,118030.0,0.2817773]
[1753897339208,0.34004856,118040.0,118030.0,0.3087773]
[1753897343607,4.856e-05,118040.0,118030.0,0.3087773]
[1753897345053,4.856e-05,118040.0,118030.0,0.75194875]
[1753897345206,4.856e-05,118040.0,118030.0,0.3087773]
[1753897351557,4.856e-05,118040.0,118030.0,0.1800573]
[1753897351693,4.856e-05,118040.0,118030.0,0.2796373]
[1753897351899,0.44322001,118040.0,118030.0,0.2131973]
[1753897352285,0.44322001,118040.0,118030.0,0.2490673]
[1753897352485,0.44322001,118040.0,118030.0,0.2793173]
[1753897352897,0.44322001,118040.0,118030.0,0.3039173]
[1753897353121,0.44322001,118040.0,118030.0,0.3059573]
[1753897353516,4.856e-05,118040.0,118030.0,0.3059573]
[1753897362355,0.44322001,118040.0,118030.0,0.1505973]
[1753897362566,0.44322001,118040.0,118030.0,0.2131973]
[1753897362983,0.44322001,118040.0,118030.0,0.2490673]
[1753897363616,0.44322001,118040.0,118030.0,0.2521173]
[1753897364087,0.44322001,118040.0,118030.0,0.2784173]
[1753897364263,4.856e-05,118040.0,118030.0,0.2804573]
[1753897366602,4.856e-05,118040.0,118030.0,0.3073573]
[1753897370982,0.44322001,118040.0,118030.0,0.2804573]
[1753897371481,4.856e-05,118040.0,118030.0,0.2804573]
[1753897374211,0.44322001,118040.0,118030.0,0.2804573]
[1753897376976,4.856e-05,118040.0,118030.0,0.2804573]
[1753897377209,0.44322001,118040.0,118030.0,0.2804573]
[1753897378533,4.856e-05,118040.0,118030.0,0.2804573]
[1753897378756,0.44322001,118040.0,118030.0,0.2804573]
[1753897380060,4.856e-05,118040.0,118030.0,0.2804573]
[1753897380360,4.856e-05,118040.0,118030.0,0.3052573]
[1753897381751,0.44322001,118040.0,118030.0,0.1254373]
[1753897382005,0.34,118030.0,118020.0,0.03748]
[1753897382238,0.78317145,118030.0,118020.0,0.2506373]
[1753897383253,0.78317145,118030.0,118020.0,0.2516373]
[1753897383455,0.78317145,118030.0,118020.0,0.2536373]
[1753897384736,0.34,118030.0,118020.0,0.2536373]
[1753897384933,0.34,118030.0,118020.0,0.2812573]
[1753897385526,0.78317145,118030.0,118020.0,0.2812573]
[1753897385953,0.34,118030.0,118020.0,0.2812573]
[1753897388509,0.78317145,118030.0,118020.0,0.2812573]
[1753897391219,0.78317145,118030.0,118020.0,0.3078573]
[1753897394266,0.79773145,118030.0,118020.0,0.2161573]
[1753897394514,0.78317145,118030.0,118020.0,0.2161573]
[1753897394728,0.78317145,118030.0,118020.0,0.2504073]
[1753897394951,0.79164322,118030.0,118020.0,0.2504073]
[1753897395384,0.78317145,118030.0,118020.0,0.2536373]
[1753897396106,0.79164322,118030.0,118020.0,0.2536373]
[1753897396514,0.78317145,118030.0,118020.0,0.2536373]
[1753897396894,0.78317145,118030.0,118020.0,0.16916]
[1753897397380,0.44317145,118030.0,118020.0,0.16916]
[1753897397591,0.44317145,118030.0,118020.0,0.19638]
[1753897398204,0.44806555,118040.0,118020.0,0.19638]
[1753897398421,0.44317145,118030.0,118020.0,0.19638]
[1753897398988,0.44317145,118030.0,118020.0,0.19538]
[1753897400201,0.44317145,118030.0,118020.0,0.19638]
[1753897406764,0.47058638,118030.0,118020.0,0.03725]
[1753897406997,5.59186168,118030.0,118020.0,0.13172]
[1753897407863,5.5918616,118030.0,118020.0,0.13172]
[1753897408069,5.58338933,118030.0,118020.0,0.13172]
[1753897408933,5.5918616,118030.0,118020.0,0.13172]
[1753897409946,5.76131004,118030.0,118020.0,0.13172]
[1753897410147,5.76978246,118030.0,118020.0,0.13172]
[1753897410535,5.5918616,118030.0,118020.0,0.13172]
[1753897411617,5.62575484,118030.0,118020.0,0.13172]
[1753897412024,5.61728242,118030.0,118020.0,0.13172]
[1753897412231,5.61728235,118030.0,118020.0,0.13172]
[1753897412643,5.53553647,118030.0,118020.0,0.13172]
[1753897412796,5.09236607,118030.0,118020.0,0.13172]
[1753897413014,5.54400951,118030.0,118020.0,0.13172]
[1753897413222,5.55248157,118030.0,118020.0,0.13172]
[1753897414244,5.55248164,118030.0,118020.0,0.13172]
[1753897414689,5.54652323,118030.0,118020.0,0.13172]
[1753897415105,5.5549955,118030.0,118020.0,0.13172]
[1753897415290,5.52142323,118030.0,118020.0,0.16649]
[1753897416139,5.51890892,118030.0,118020.0,0.16649]
[1753897416554,5.52738105,118030.0,118020.0,0.16649]
[1753897416749,5.51890892,118030.0,118020.0,0.16649]
[1753897417043,5.52142316,118030.0,118020.0,0.16649]
[1753897417312,5.52989529,118030.0,118020.0,0.16649]
[1753897417449,5.53836756,118030.0,118020.0,0.16649]
[1753897417653,5.54432556,118030.0,118020.0,0.13172]
[1753897418283,0.54432549,118030.0,118020.0,0.13172]
[1753897418494,5.54432585,118030.0,118020.0,0.13172]
[1753897418707,5.53585358,118030.0,118020.0,0.13172]
[1753897418909,5.52738138,118030.0,118020.0,0.13172]
[1753897419121,5.51890925,118030.0,118020.0,0.16649]
[1753897419637,5.51043697,118030.0,118020.0,0.16649]
[1753897419846,5.51890903,118030.0,118020.0,0.16956]
[1753897420822,5.74037576,118030.0,118020.0,0.16956]
[1753897421233,5.74884789,118030.0,118020.0,0.16956]
[1753897421442,5.74037576,118030.0,118020.0,0.16956]
[1753897421649,5.08420964,118030.0,118020.0,0.16956]
[1753897421853,5.74884872,118030.0,118020.0,0.16956]
[1753897422494,5.75732092,118030.0,118020.0,0.16649]
[1753897422911,5.75732085,118030.0,118020.0,0.16649]
[1753897423992,5.74884872,118030.0,118020.0,0.16649]
[1753897424215,5.74037666,118030.0,118020.0,0.16649]
[1753897424662,5.74037666,118030.0,118020.0,0.16956]
[1753897425532,5.73190467,118030.0,118020.0,0.16956]
[1753897426249,5.72343283,118030.0,118020.0,0.16956]
[1753897426471,5.36369881,118030.0,118020.0,0.19626]
[1753897426687,0.36369881,118030.0,118020.0,0.19626]
[1753897426905,0.36369881,118030.0,118020.0,0.19826]
[1753897430910,0.36370204,118030.0,118020.0,0.19826]
[1753897432667,0.00596213,118030.0,118020.0,0.3073373]
[1753897432866,0.00596213,118030.0,118020.0,0.2560373]
[1753897433096,0.67231909,118030.0,118020.0,0.2560373]
[1753897433325,0.67231909,118030.0,118020.0,0.1273173]
[1753897433550,0.67231909,118030.0,118020.0,0.3053973]
[1753897434461,0.67828212,118030.0,118020.0,0.3053973]
[1753897436256,0.34596303,118030.0,118020.0,0.3053973]
[1753897436508,0.67231909,118030.0,118020.0,0.3053973]
[1753897437158,0.34,118030.0,118020.0,0.3053973]
[1753897437379,0.67231909,118030.0,118020.0,0.3053973]
[1753897439523,0.34,118030.0,118020.0,0.3053973]
[1753897439925,0.34004856,118040.0,118030.0,0.0531]
[1753897440137,0.67832875,118040.0,118030.0,0.0531]
[1753897440369,0.67832875,118040.0,118030.0,0.0894]
[1753897440773,0.34004856,118040.0,118030.0,0.1738773]
[1753897441183,0.67236765,118040.0,118030.0,0.1738773]
[1753897441415,0.34004856,118040.0,118030.0,0.1738773]
[1753897441607,0.67236765,118040.0,118030.0,0.1738773]
[1753897444552,0.36512361,118020.0,118010.0,0.19494342]
[1753897444752,0.36512361,118020.0,118010.0,0.74041981]
[1753897444969,0.36512361,118020.0,118010.0,0.74247981]
[1753897445990,0.36512361,118020.0,118010.0,0.2436863]
[1753897446250,0.36512361,118020.0,118010.0,0.2182173]
[1753897446494,0.36512361,118020.0,118010.0,0.2202173]
[1753897446704,0.36512361,118020.0,118010.0,0.2544573]
[1753897447335,0.6974427,118020.0,118010.0,0.2544573]
[1753897447620,1.02976179,118020.0,118010.0,0.1787773]
[1753897447860,0.6974427,118020.0,118010.0,0.3074573]
[1753897448316,0.36512361,118020.0,118010.0,0.3074573]
[1753897448534,0.6974427,118020.0,118010.0,0.33750521]
[1753897448748,0.6974427,118020.0,118010.0,0.3074573]
[1753897448963,0.36512361,118020.0,118010.0,0.3074573]
[1753897453504,0.80814167,118020.0,118010.0,0.3074573]
[1753897457071,0.36512361,118020.0,118010.0,0.3074573]
[1753897458347,0.70718361,118020.0,118010.0,0.3074173]
[1753897458545,0.70512361,118020.0,118010.0,0.3074173]
[1753897458744,0.36512361,118020.0,118010.0,0.3074173]
[1753897466590,0.36512361,118020.0,118010.0,0.47689446]
[1753897467490,0.36512361,118020.0,118010.0,0.91991252]
[1753897467720,0.36512361,118020.0,118010.0,0.47689446]
[1753897470807,0.36512361,118020.0,118010.0,0.3074173]
[1753897471050,0.36512361,118020.0,118010.0,0.63960476]
[1753897471260,0.36512361,118020.0,118010.0,0.3074173]
[1753897471640,0.36512361,118020.0,118010.0,0.1787773]
[1753897471852,0.36512361,118020.0,118010.0,0.3074173]
[1753897472766,0.69731107,118020.0,118010.0,0.3074173]
[1753897472959,0.36512361,118020.0,118010.0,0.3074173]
[1753897473519,0.69731107,118020.0,118010.0,0.3074173]
[1753897474128,0.36512361,118020.0,118010.0,0.3074173]
[1753897474340,0.69731107,118020.0,118010.0,0.3074173]
[1753897476344,0.69935107,118020.0,118010.0,0.1787773]
[1753897476549,0.69935107,118020.0,118010.0,0.3074173]
[1753897476738,0.69935107,118020.0,118010.0,0.3044273]
[1753897480726,0.69935107,118020.0,118010.0,0.3075673]
[1753897483389,0.73783107,118020.0,118010.0,0.2181173]
[1753897484894,0.73783107,118020.0,118010.0,0.2543373]
[1753897485496,1.07001853,118020.0,118010.0,0.2181173]
[1753897485763,1.12701853,118020.0,118010.0,0.005]
[1753897485972,1.21149583,118020.0,118010.0,0.005]
[1753897486195,1.12701853,118020.0,118010.0,0.13364]
[1753897487021,0.46264361,118020.0,118010.0,0.13364]
[1753897487224,1.12701853,118020.0,118010.0,0.13364]
[1753897488099,1.07001853,118020.0,118010.0,0.13364]
[1753897488302,0.73783107,118020.0,118010.0,0.13364]
[1753897490924,0.84864994,118020.0,118010.0,0.13364]
[1753897497047,0.84569994,118020.0,118010.0,0.13364]
[1753897497262,0.81016994,118020.0,118010.0,0.16697]
[1753897497478,1.15016994,118020.0,118010.0,0.005]
[1753897497721,1.24365994,118020.0,118010.0,0.1336]
[1753897499005,1.21415994,118020.0,118010.0,0.1336]
[1753897501352,1.18625994,118020.0,118010.0,0.1336]
[1753897502789,0.74325361,118020.0,118010.0,0.1336]
[1753897503044,1.18625994,118020.0,118010.0,0.1336]
[1753897512067,1.24215994,118020.0,118010.0,0.1336]
[1753897512494,1.21505994,118020.0,118010.0,0.1336]
[1753897512917,1.21505994,118020.0,118010.0,0.005]
[1753897512918,1.43667219,118020.0,118010.0,0.005]
[1753897513104,1.85934065,118020.0,118010.0,0.005]
[1753897513322,7.05422221,118020.0,118010.0,0.1336]
[1753897513549,7.24574907,118020.0,118010.0,0.1336]
[1753897513774,7.26916166,118020.0,118010.0,0.1336]
[1753897514009,7.05533781,118020.0,118010.0,0.1336]
[1753897514245,7.03723876,118020.0,118010.0,0.003]
[1753897514511,7.03974861,118020.0,118010.0,0.003]
[1753897514728,7.03974854,118020.0,118010.0,0.003]
[1753897514956,0.3676,118010.0,118000.0,0.1286]
[1753897515182,0.84888601,118010.0,118000.0,0.1286]
[1753897515404,0.87678601,118010.0,118000.0,0.1286]
[1753897515623,0.84888601,118010.0,118000.0,0.1286]
[1753897516727,0.84988601,118010.0,118000.0,0.1286]
[1753897517582,0.85088601,118010.0,118000.0,0.1286]
[1753897520659,0.82328601,118010.0,118000.0,0.1286]
[1753897521498,0.82328601,118010.0,118000.0,0.16193]
[1753897523327,0.87202022,118010.0,118000.0,0.1286]
[1753897529169,0.90002022,118010.0,118000.0,0.1286]
[1753897530395,0.87202022,118010.0,118000.0,0.1286]
[1753897532702,0.84482022,118010.0,118000.0,0.1286]
[1753897533476,0.82328601,118010.0,118000.0,0.16042]
[1753897534119,0.37694,118010.0,118000.0,0.16042]
[1753897534320,0.78719601,118010.0,118000.0,0.16042]
[1753897536603,0.81931601,118010.0,118000.0,0.16042]
[1753897536819,1.0408681,118010.0,118000.0,0.16042]
[1753897537739,0.70847905,118010.0,118000.0,0.16042]
[1753897537951,0.37609,118010.0,118000.0,0.16042]
[1753897538153,0.67635905,118010.0,118000.0,0.16042]
[1753897538575,1.0087481,118010.0,118000.0,0.16241]
[1753897545720,0.34397,118010.0,118000.0,0.19181]
[1753897545945,0.67635905,118010.0,118000.0,0.19181]
[1753897546382,0.67635905,118010.0,118000.0,0.19478]
[1753897551776,0.67635905,118010.0,118000.0,0.19181]
[1753897552005,0.67635905,118010.0,118000.0,0.16241]
[1753897553032,1.0087481,118010.0,118000.0,0.16241]
[1753897553252,0.70847905,118010.0,118000.0,0.16042]
[1753897553498,1.0408681,118010.0,118000.0,0.16042]
[1753897553741,0.70847905,118010.0,118000.0,0.16042]
[1753897557040,1.0408681,118010.0,118000.0,0.16042]
[1753897561316,0.00847464,117990.0,117980.0,0.0584]
[1753897561534,0.34,117970.0,117960.0,0.0002]
[1753897561761,6.54973625,117970.0,117960.0,0.0002]
[1753897562001,6.77325755,117970.0,117960.0,0.0002]
[1753897562263,6.72445009,117970.0,117960.0,0.0002]
[1753897562474,6.32112155,117970.0,117960.0,0.0002]
[1753897562683,6.3126454,117970.0,117960.0,0.00024855]
[1753897562893,6.00694097,117970.0,117960.0,0.00024855]
[1753897563114,0.95034097,117970.0,117960.0,0.00024855]
[1753897563331,0.62756731,117970.0,117960.0,0.00024855]
[1753897563566,0.71139684,117970.0,117960.0,0.00024855]
[1753897563766,0.79587414,117970.0,117960.0,0.00024855]
[1753897563989,0.80467019,117970.0,117960.0,0.00024855]
[1753897564418,5.79619389,117970.0,117960.0,0.00024855]
[1753897564638,5.78771781,117970.0,117960.0,0.00024855]
[1753897564865,5.70324051,117970.0,117960.0,0.00024855]
[1753897565079,5.70424051,117970.0,117960.0,0.00024855]
[1753897565290,5.67524051,117970.0,117960.0,0.00024855]
[1753897565501,6.01624051,117970.0,117960.0,0.00024855]
[1753897566163,6.04454051,117970.0,117960.0,0.00024855]
[1753897566801,6.12901781,117970.0,117960.0,0.00024855]
[1753897567244,5.85828051,117970.0,117960.0,0.00024855]
[1753897567491,5.85828051,117970.0,117960.0,0.09590855]
[1753897567492,5.79628101,117970.0,117960.0,0.09590855]
[1753897567707,0.92290101,117970.0,117960.0,0.09590855]
[1753897568140,0.92290101,117970.0,117960.0,0.06850855]
[1753897568562,0.92190101,117970.0,117960.0,0.06850855]
[1753897568991,0.92090101,117970.0,117960.0,0.06850855]
[1753897569692,0.47735004,117970.0,117960.0,0.07811941]
[1753897569903,0.58090101,117970.0,117960.0,0.10551941]
[1753897570307,0.45230101,117970.0,117960.0,0.10551941]
[1753897570724,0.45230101,117970.0,117960.0,0.09590855]
[1753897573948,0.79230101,117970.0,117960.0,0.09590855]
[1753897574493,0.00875004,117970.0,117960.0,0.75253682]
[1753897574707,0.1286,117980.0,117960.0,0.86508581]
[1753897574915,0.90521807,117990.0,117970.0,0.0943]
[1753897575087,1.03381807,117990.0,117970.0,0.06096]
[1753897575315,1.37381807,117990.0,117980.0,0.03334]
[1753897575516,1.37579807,117990.0,117980.0,0.03334]
[1753897576122,1.38434986,117990.0,117980.0,0.03334]
[1753897576563,1.41758986,117990.0,117980.0,0.03334]
[1753897577522,1.21842927,117990.0,117980.0,0.03334]
[1753897578784,0.80734986,117990.0,117980.0,0.07509]
[1753897579057,0.93594986,117990.0,117980.0,0.07509]
[1753897579699,0.95592276,117990.0,117980.0,0.0355]
[1753897579831,0.95592276,117990.0,117980.0,0.03334]
[1753897580034,0.95893276,117990.0,117970.0,0.0929]
[1753897580310,0.95893276,117990.0,117970.0,0.1773773]
[1753897580311,0.44355097,117980.0,117970.0,0.1773773]
[1753897580516,0.44355097,117980.0,117970.0,0.1795373]
[1753897582110,0.51340179,117990.0,117970.0,0.1795373]
[1753897582313,0.44355097,117980.0,117970.0,0.1795373]
[1753897582516,0.44355097,117980.0,117970.0,0.1805373]
[1753897582991,0.69281272,117980.0,117970.0,0.001]
[1753897583212,1.0147164,117980.0,117970.0,0.001]
[1753897583422,1.15714456,117980.0,117970.0,0.001]
[1753897583852,1.14866862,117980.0,117970.0,0.001]
[1753897584055,1.15714448,117980.0,117970.0,0.001]
[1753897584297,1.14866862,117980.0,117970.0,0.001]
[1753897584505,1.1401929,117980.0,117970.0,0.001]
[1753897584721,1.14866862,117980.0,117970.0,0.001]
[1753897585454,1.3401929,117980.0,117970.0,0.001]
[1753897585655,1.31362115,117980.0,117970.0,0.001]
[1753897585858,1.32209673,117980.0,117970.0,0.002]
[1753897586038,1.33904882,117980.0,117970.0,0.002]
[1753897586456,1.33904875,117980.0,117970.0,0.002]
[1753897587025,1.33904672,117980.0,117970.0,0.002]
[1753897587227,1.33057078,117980.0,117970.0,0.002]
[1753897587427,1.32209499,117980.0,117970.0,0.002]
[1753897587901,1.23761769,117980.0,117970.0,0.002]
[1753897588421,1.24609348,117980.0,117970.0,0.002]
[1753897588836,1.25456934,117980.0,117970.0,0.002]
[1753897589048,1.25456977,117980.0,117970.0,0.002]
[1753897589238,1.25456984,117980.0,117970.0,0.002]
[1753897589498,1.22914218,117980.0,117970.0,0.002]
[1753897590126,1.27775077,117980.0,117970.0,0.002]
[1753897590325,1.29470246,117980.0,117970.0,0.002]
[1753897590983,1.22914193,117980.0,117970.0,0.002]
[1753897592115,1.21219099,117980.0,117970.0,0.002]
[1753897592740,1.22914193,117980.0,117970.0,0.002]
[1753897593475,1.22066635,117980.0,117970.0,0.002]
[1753897593679,1.23761768,117980.0,117970.0,0.002]
[1753897594509,1.29971502,117980.0,117970.0,0.002]
[1753897594713,1.30819081,117980.0,117970.0,0.002]
[1753897595339,1.31666675,117980.0,117970.0,0.002]
[1753897596625,1.486187,117980.0,117970.0,0.002]
[1753897596848,1.46923621,117980.0,117970.0,0.002]
[1753897597484,6.46923621,117980.0,117970.0,0.002]
[1753897601170,5.85616499,117980.0,117970.0,0.002]
[1753897601370,6.46923621,117980.0,117970.0,0.002]
[1753897601973,7.00623792,117980.0,117970.0,0.002]
[1753897602157,7.06022461,117980.0,117970.0,0.002]
[1753897602557,6.61667364,117980.0,117970.0,0.002]
[1753897602765,6.6166735,117980.0,117970.0,0.001]
[1753897603160,0.07365238,117970.0,117960.0,0.00024855]
[1753897603370,5.78245584,117970.0,117960.0,0.00024855]
[1753897603777,5.79093242,117970.0,117960.0,0.00024855]
[1753897604422,5.79940915,117970.0,117960.0,0.00024855]
[1753897604979,5.97752235,117970.0,117960.0,0.00024855]
[1753897605390,6.44848826,117970.0,117960.0,0.00024855]
[1753897605598,6.00493783,117970.0,117960.0,0.00024855]
[1753897605828,6.00593783,117970.0,117960.0,0.00024855]
[1753897606038,6.00793783,117970.0,117960.0,0.00024855]
[1753897606456,6.44301236,117970.0,117960.0,0.00024855]
[1753897606668,6.52748966,117970.0,117960.0,0.00024855]
[1753897606902,6.74493868,117970.0,117960.0,0.00024855]
[1753897607104,6.77151043,117970.0,117960.0,0.00024855]
[1753897608507,6.77151352,117970.0,117960.0,0.00024855]
[1753897608885,6.74494177,117970.0,117960.0,0.00024855]
[1753897609094,6.73646519,117970.0,117960.0,0.00024855]
[1753897610568,6.55646836,117970.0,117960.0,0.00024855]
[1753897610778,6.09596401,117970.0,117960.0,0.00024855]
[1753897610986,6.12139311,117970.0,117960.0,0.00024855]
[1753897611201,6.29092838,117970.0,117960.0,0.00024855]
[1753897611397,6.28245223,117970.0,117960.0,0.00024855]